bitfinex/quotes_SOLUSD_20240925
["timestamp","ask_amount","ask_price","bid_price","bid_amount"]
[1727302586685,0.0418208,149.12,149.09,1.34118493]
[1727302586864,0.0418208,149.12,149.08,35.71189767]
[1727302587066,0.0418208,149.12,149.1,6.7068]
[1727302588601,0.0418208,149.12,149.11,8.04740609]
[1727302589500,0.0418208,149.12,149.11,6.7064]
[1727302591880,0.0418208,149.12,149.11,8.04712546]
[1727302592783,0.0696498,149.14,149.13,25.64829767]
[1727302593090,0.0696498,149.14,149.13,26.98886012]
[1727302594009,0.0696498,149.14,149.13,25.64829767]
[1727302595692,0.0696498,149.14,149.13,26.98891424]
[1727302596908,0.0696498,149.14,149.13,25.64829767]
[1727302599303,0.0696498,149.14,149.13,26.98878879]
[1727302600588,0.3139151,149.16,149.13,20.40877879]
[1727302600790,0.3139151,149.16,149.15,25.64739767]
[1727302601106,0.3139151,149.16,149.15,26.98778561]
[1727302602507,0.3139151,149.16,149.15,6.7046]
[1727302602722,0.3139151,149.16,149.14,23.4672]
[1727302603015,0.3139151,149.16,149.15,8.04518615]
[1727302603189,0.3139151,149.16,149.15,6.7046]
[1727302603611,0.3139151,149.16,149.15,25.64739767]
[1727302605107,0.3139151,149.16,149.15,26.98785364]
[1727302605305,0.3139151,149.16,149.15,25.64739767]
[1727302609821,0.3139151,149.16,149.15,26.98785728]
[1727302610119,16.1726259,149.22,149.19,6.7025]
[1727302610320,0.4159259,149.22,149.2,8.04234758]
[1727302611418,0.0696498,149.23,149.2,37.03854525]
[1727302611419,0.2939576,149.23,149.2,37.03854525]
[1727302611591,0.2939576,149.23,149.22,25.64429767]
[1727302611792,0.2939576,149.23,149.21,6.7019]
[1727302612702,0.3308076,149.25,149.24,6.82609]
[1727302613012,0.0696498,149.32,149.29,6.6982]
[1727302613204,0.0696498,149.32,149.27,16.7477]
[1727302613205,0.0696498,149.32,149.28,6.6987]
[1727302613409,0.0696498,149.32,149.27,16.7477]
[1727302613718,7.1303184,149.31,149.27,16.7477]
[1727302613906,6.6303184,149.31,149.26,6.6996]
[1727302614102,6.6979,149.3,149.25,25.64289767]
[1727302614829,22.7527498,149.32,149.27,6.6991]
[1727302614991,0.0696498,149.32,149.27,16.748]
[1727302615300,0.0696498,149.32,149.28,26.98082207]
[1727302615501,0.0696498,149.32,149.29,6.6983]
[1727302615726,0.0696498,149.32,149.3,25.64059767]
[1727302616217,0.0696498,149.32,149.31,1.33920245]
[1727302616592,0.0696498,149.32,149.31,6.6974]
[1727302616794,0.0696498,149.32,149.31,8.03649803]
[1727302616993,0.0696498,149.32,149.29,16.7449]
[1727302617222,0.0696498,149.32,149.26,35.69179767]
[1727302617519,6.6978,149.31,149.26,16.749]
[1727302618096,6.6978,149.31,149.26,23.4486]
[1727302619909,20.12549,149.3,149.23,16.7523]
[1727302620212,26.6979,149.3,149.26,18.94279767]
[1727302620412,20.0,149.3,149.27,1.33959417]
[1727302620806,20.0,149.3,149.24,18.94279767]
[1727302621000,6.6984,149.29,149.24,25.64329767]
[1727302621298,20.0,149.3,149.26,6.6996]
[1727302621499,20.0,149.3,149.26,25.64239767]
[1727302621699,26.6979,149.3,149.24,35.69339767]
[1727302621920,26.6979,149.3,149.25,6.7001]
[1727302623017,20.0,149.3,149.24,35.69339767]
[1727302623203,20.0,149.3,149.27,6.6992]
[1727302623414,20.0,149.3,149.28,1.33953427]
[1727302623611,15.9105,149.31,149.28,8.03823427]
[1727302623927,15.9105,149.31,149.28,1.33953427]
[1727302624321,0.0696498,149.32,149.3,25.64059767]
[1727302624622,0.0696498,149.32,149.31,8.03660642]
[1727302625603,0.3308076,149.37,149.34,6.696]
[1727302625803,0.3308076,149.37,149.34,18.94279767]
[1727302627124,0.3308076,149.37,149.34,25.63849767]
[1727302628018,0.3308076,149.37,149.36,25.63799767]
[1727302628936,0.3308076,149.37,149.34,25.63879767]
[1727302629235,0.3308076,149.37,149.35,6.6952]
[1727302629535,0.3308076,149.37,149.34,6.6961]
[1727302629825,0.3308076,149.37,149.33,16.7412]
[1727302630031,0.3308076,149.37,149.33,23.4377]
[1727302632010,7.0256076,149.37,149.32,6.6969]
[1727302632230,6.6955,149.36,149.3,16.7445]
[1727302632829,6.6955,149.36,149.31,1.33909032]
[1727302633436,6.6955,149.36,149.31,8.03649032]
[1727302633929,0.3308076,149.37,149.32,6.6966]
[1727302634144,0.3308076,149.37,149.34,6.6961]
[1727302634314,0.3308076,149.37,149.35,1.33883336]
[1727302634819,0.3308076,149.37,149.35,6.6952]
[1727302635023,0.3308076,149.37,149.36,1.33883177]
[1727302635328,0.3308076,149.37,149.36,8.03403177]
[1727302636528,0.3308076,149.37,149.36,6.6952]
[1727302637529,0.3308076,149.37,149.36,8.03374125]
[1727302638523,0.3308076,149.37,149.35,35.55189767]
[1727302638843,0.3308076,149.37,149.36,6.6952]
[1727302639330,0.3308076,149.37,149.34,16.7394]
[1727302639533,0.3308076,149.37,149.33,6.6963]
[1727302639833,7.0255076,149.37,149.33,6.6963]
[1727302640234,0.3308076,149.37,149.33,6.6963]
[1727302640920,0.3308076,149.37,149.31,16.7432]
[1727302641115,6.6953,149.36,149.31,16.7432]
[1727302641334,7.0256076,149.37,149.32,6.6969]
[1727302641835,0.3308076,149.37,149.36,25.63799767]
[1727302642043,0.3308076,149.37,149.36,26.97663535]
[1727302642332,0.3308076,149.37,149.36,27.10212535]
[1727302642637,0.3308076,149.37,149.36,25.76348767]
[1727302643921,0.3308076,149.37,149.36,25.63799767]
[1727302644425,0.3308076,149.37,149.36,6.6952]
[1727302644826,0.3308076,149.37,149.35,6.6956]
[1727302646535,0.3308076,149.37,149.36,8.03396888]
[1727302646724,0.3308076,149.37,149.36,6.6952]
[1727302647629,0.3308076,149.37,149.35,6.6955]
[1727302655358,0.3308076,149.37,149.36,8.03393105]
[1727302656568,0.3308076,149.37,149.36,8.15942105]
[1727302657146,0.3308076,149.37,149.36,6.6952]
[1727302658252,0.3308076,149.37,149.36,30.597574]
[1727302658452,0.1020108,149.39,149.38,6.6943]
[1727302658659,0.1020108,149.39,149.38,8.03268117]
[1727302659038,0.1020108,149.39,149.38,8.15817117]
[1727302659444,0.1020108,149.39,149.38,31.93505517]
[1727302659647,6.6101,149.47,149.38,0.12549]
[1727302659648,6.6913,149.45,149.38,0.12549]
[1727302659853,0.0696498,149.42,149.4,6.693]
[1727302660555,0.0696498,149.42,149.41,8.03116561]
[1727302660857,6.7625498,149.42,149.36,16.7375]
[1727302661055,6.7625498,149.42,149.37,6.6946]
[1727302661356,0.0696498,149.42,149.36,23.4326]
[1727302661534,6.693,149.41,149.36,23.4326]
[1727302662547,6.6938,149.4,149.36,16.7375]
[1727302662742,6.6939,149.39,149.34,6.696]
[1727302663144,6.6935,149.4,149.35,6.6956]
[1727302664656,6.6948,149.37,149.33,16.7411]
[1727302664850,6.6944,149.38,149.33,16.7411]
[1727302665048,6.8677154,149.39,149.34,6.6961]
[1727302665381,0.1739154,149.39,149.29,15.5178]
[1727302665671,0.1739154,149.39,149.37,16.7364]
[1727302665869,0.1739154,149.39,149.35,6.6955]
[1727302666081,0.1739154,149.39,149.32,20.0]
[1727302666255,6.695,149.37,149.32,26.6967]
[1727302666848,6.6957,149.35,149.31,16.7431]
[1727302667058,15.4417,149.38,149.32,1.33915271]
[1727302667358,0.1739154,149.39,149.33,18.0798673]
[1727302667562,0.1739154,149.39,149.33,16.7408]
[1727302668262,0.1739154,149.39,149.35,6.6956]
[1727302668666,0.1739154,149.39,149.36,23.4324]
[1727302668973,0.1739154,149.39,149.37,6.6945]
[1727302669955,0.1739154,149.39,149.36,16.7373]
[1727302672255,0.1739154,149.39,149.35,6.6956]
[1727302672256,6.8678154,149.39,149.35,6.6956]
[1727302672948,6.8678154,149.39,149.32,15.3845]
[1727302672949,20.12549,149.38,149.3,16.7445]
[1727302673173,6.6956,149.36,149.31,6.6971]
[1727302673565,6.6956,149.36,149.32,6.6969]
[1727302675571,6.6956,149.36,149.3,16.7445]
[1727302675572,16.2189,149.36,149.3,16.7445]
[1727302675761,6.6964,149.34,149.3,16.7445]
[1727302676367,20.0,149.35,149.3,16.7445]
[1727302676568,6.6966,149.33,149.29,6.6982]
[1727302677892,26.5464,149.35,149.27,16.7476]
[1727302677893,6.6972,149.32,149.27,23.4464]
[1727302678264,6.5464,149.35,149.3,18.86483365]
[1727302678585,13.2421,149.35,149.31,23.4405]
[1727302679287,26.82169,149.34,149.29,6.6983]
[1727302680494,6.82169,149.34,149.29,6.6983]
[1727302681673,6.5464,149.35,149.31,6.6973]
[1727302681878,6.5464,149.35,149.32,1.33924046]
[1727302682073,13.1882154,149.39,149.34,6.6961]
[1727302682274,6.6944,149.38,149.34,8.03510781]
[1727302682482,6.6944,149.38,149.32,16.7419]
[1727302682691,6.6944,149.38,149.33,6.6964]
[1727302682985,6.6952,149.36,149.32,23.4388]
[1727302683192,6.4943154,149.39,149.32,16.7419]
[1727302683398,6.6949,149.37,149.33,6.6965]
[1727302683892,13.1882154,149.39,149.34,1.33906424]
[1727302684101,13.1882154,149.39,149.35,6.6956]
[1727302685195,6.6943,149.38,149.34,23.4357]
[1727302685403,13.1882154,149.39,149.34,23.4357]
[1727302685579,13.1882154,149.39,149.34,16.7397]
[1727302685580,6.6944,149.38,149.34,16.7397]
[1727302686796,6.4943154,149.39,149.28,6.0389]
[1727302686797,0.12549,149.37,149.31,16.743]
[1727302687008,6.696,149.35,149.31,16.743]
[1727302687377,6.696,149.35,149.31,23.4404]
[1727302687573,23.902374,149.38,149.28,18.86483365]
[1727302687796,6.6962,149.34,149.28,16.7464]
[1727302688107,40.638574,149.38,149.28,16.7464]
[1727302688108,6.6967,149.33,149.28,23.4449]
[1727302688598,80.998574,149.38,149.28,16.7464]
[1727302688599,6.6962,149.34,149.28,16.7464]
[1727302688900,6.6966,149.33,149.28,23.4451]
[1727302689082,40.649664,149.35,149.24,34.58953365]
[1727302689289,23.902374,149.33,149.26,6.6996]
[1727302689782,6.6984,149.29,149.25,16.7499]
[1727302689984,6.6988,149.28,149.23,6.9820349]
[1727302690778,6.6984,149.29,149.23,0.2810349]
[1727302690980,64.262374,149.33,149.24,16.7504]
[1727302690981,6.698,149.3,149.24,16.7504]
[1727302691186,6.6975,149.31,149.26,6.6993]
[1727302692780,6.6984,149.29,149.24,23.4509]
[1727302692984,23.902374,149.31,149.25,6.7001]
[1727302693188,6.6979,149.3,149.25,6.7001]
[1727302694500,20.12549,149.32,149.27,6.6991]
[1727302694501,6.6971,149.32,149.27,6.6991]
[1727302696584,6.6975,149.31,149.27,6.6991]
[1727302696784,6.6975,149.31,149.26,23.4483]
[1727302697312,0.12549,149.33,149.27,1.33968711]
[1727302697480,6.4904,149.34,149.27,1.33968711]
[1727302697687,13.1865,149.34,149.3,6.6978]
[1727302698002,16.6218,149.35,149.3,6.6978]
[1727302698205,6.6957,149.35,149.31,1.33937088]
[1727302698397,6.6957,149.35,149.3,1.33935864]
[1727302698604,6.6943,149.38,149.33,6.6964]
[1727302699401,6.6948,149.37,149.33,6.6964]
[1727302699783,22.9376154,149.39,149.31,16.7432]
[1727302700404,6.6964,149.34,149.28,39.5751]
[1727302700592,50.0,149.37,149.28,23.4453]
[1727302700799,6.697,149.32,149.28,23.4453]
[1727302701212,6.697,149.32,149.28,16.7465]
[1727302701592,6.6976,149.31,149.27,6.6991]
[1727302701813,50.0,149.35,149.26,6.6996]
[1727302702019,6.6983,149.3,149.25,23.45]
[1727302702813,6.6983,149.3,149.25,16.75]
[1727302703016,6.6983,149.3,149.26,6.6996]
[1727302703306,6.6988,149.28,149.24,6.7002]
[1727302703509,6.6988,149.28,149.23,0.2810349]
[1727302703817,6.6988,149.28,149.24,6.7006]
[1727302704791,6.6984,149.29,149.24,6.7006]
[1727302705196,23.902374,149.31,149.25,6.7]
[1727302705197,23.776884,149.31,149.25,6.7]
[1727302705403,6.698,149.3,149.25,6.7]
[1727302705997,0.12549,149.3,149.23,0.2810349]
[1727302707001,6.6989,149.28,149.23,6.9819349]
[1727302712299,0.12549,149.3,149.23,17.0330349]
[1727302712606,0.12549,149.3,149.25,6.6998]
[1727302712814,6.6987,149.29,149.24,6.7002]
[1727302713430,6.6987,149.29,149.25,8.03986587]
[1727302714620,6.698,149.3,149.25,6.7]
[1727302714824,6.698,149.3,149.26,8.03941555]
[1727302715210,6.698,149.3,149.26,6.6996]
[1727302716538,6.82299,149.31,149.26,6.6996]
[1727302717436,6.82299,149.31,149.25,16.7499]
[1727302717437,15.8841,149.32,149.27,8.03889714]
[1727302717608,15.6297,149.36,149.29,6.698]
[1727302717812,6.6962,149.34,149.3,6.6977]
[1727302718207,6.6962,149.34,149.28,1.33958957]
[1727302718432,6.6962,149.34,149.29,6.6982]
[1727302718621,6.6957,149.35,149.3,8.03721027]
[1727302719156,6.6957,149.35,149.31,6.6974]
[1727302719331,6.6953,149.36,149.31,6.6974]
[1727302719630,6.6949,149.37,149.32,8.03618462]
[1727302720010,6.6949,149.37,149.32,6.6969]
[1727302721208,23.902374,149.38,149.32,6.6969]
[1727302721437,23.902374,149.38,149.31,16.7431]
[1727302721438,6.6958,149.35,149.31,16.7431]
[1727302721618,6.6958,149.35,149.31,23.4404]
[1727302721936,6.6958,149.35,149.31,16.7431]
[1727302722440,0.12549,149.37,149.28,16.7465]
[1727302722639,6.6967,149.33,149.28,23.4452]
[1727302723123,6.6967,149.33,149.28,16.7465]
[1727302723321,74.027864,149.31,149.24,0.2817864]
[1727302723525,24.027864,149.31,149.24,0.2817864]
[1727302723725,6.6991,149.28,149.24,0.2817864]
[1727302724333,6.6991,149.28,149.24,1.62171959]
[1727302724724,6.6979,149.3,149.24,1.621701]
[1727302724926,6.6979,149.3,149.25,6.6997]
[1727302727050,6.6979,149.3,149.26,6.6997]
[1727302727231,6.6979,149.3,149.24,0.2817864]
[1727302727422,6.2764,149.32,149.24,0.2817864]
[1727302727617,6.6992,149.27,149.24,0.2817864]
[1727302727924,56.2764,149.32,149.24,0.2817864]
[1727302727925,6.2764,149.32,149.24,1.62172702]
[1727302728124,6.6984,149.29,149.24,8.32222702]
[1727302728329,6.698,149.3,149.25,6.6997]
[1727302729318,6.6975,149.31,149.26,8.03908579]
[1727302729633,6.6975,149.31,149.26,6.6993]
[1727302730525,6.2764,149.32,149.25,16.7496]
[1727302730833,6.2764,149.32,149.27,6.6989]
[1727302730834,6.6971,149.32,149.27,6.6989]
[1727302731815,6.6976,149.31,149.27,6.6989]
[1727302732343,6.6976,149.31,149.26,6.6995]
[1727302732840,6.6987,149.29,149.25,16.7496]
[1727302735832,0.12549,149.32,149.25,23.4494]
[1727302735833,6.698,149.3,149.25,23.4494]
[1727302736026,6.6985,149.29,149.25,23.4494]
[1727302737124,6.6985,149.29,149.25,16.7496]
[1727302737329,23.902374,149.32,149.24,6.9822864]
[1727302737330,6.6988,149.28,149.24,0.2817864]
[1727302739635,6.6988,149.28,149.24,6.9821864]
[1727302740324,0.25098,149.29,149.24,0.2817864]
[1727302740533,6.6997,149.26,149.24,0.2817864]
[1727302741550,30.167664,149.29,149.24,0.2817864]
[1727302741551,30.602474,149.25,149.24,0.2817864]
[1727302742062,6.82559,149.25,149.24,0.2817864]
[1727302742224,30.602474,149.25,149.24,0.2817864]
[1727302743325,30.727964,149.25,149.24,0.2817864]
[1727302743928,71.087964,149.25,149.24,0.2817864]
[1727302744129,129.07345685,149.25,149.24,8.64e-05]
[1727302744367,129.07345685,149.25,149.19,0.2442222]
[1727302744368,6.82789,149.2,149.19,0.2442222]
[1727302745947,30.730264,149.2,149.19,0.2442222]
[1727302746248,6.82789,149.2,149.19,0.2442222]
[1727302748335,13.8758466,149.25,149.19,0.2442222]
[1727302748543,6.7011,149.23,149.19,0.2442222]
[1727302749935,6.7015,149.22,149.19,0.2442222]
[1727302750758,0.12549,149.24,149.19,0.2442222]
[1727302751066,6.82609,149.24,149.19,6.9469222]
[1727302751357,6.7006,149.24,149.2,1.34035875]
[1727302751567,6.7,149.26,149.21,6.7017]
[1727302751851,6.6997,149.26,149.21,24.58876986]
[1727302753735,6.6993,149.27,149.22,6.7014]
[1727302754046,6.6993,149.27,149.22,8.04147183]
[1727302754441,6.7001,149.26,149.21,23.2485]
[1727302754634,23.3551,149.29,149.21,16.5467]
[1727302754958,23.3551,149.29,149.19,19.10905585]
[1727302754959,6.7011,149.23,149.19,0.2442222]
[1727302755461,6.7019,149.21,149.19,0.2442222]
[1727302755758,6.7018,149.22,149.19,0.2442222]
[1727302756758,6.702,149.21,149.19,0.2442222]
[1727302758356,6.7024,149.2,149.19,0.2442222]
[1727302758939,6.82789,149.2,149.19,0.2442222]
[1727302760240,30.730264,149.2,149.19,0.2442222]
[1727302763243,6.82789,149.2,149.19,0.2442222]
[1727302763440,6.7024,149.2,149.19,0.2442222]
[1727302763647,6.702,149.21,149.19,0.2442222]
[1727302764465,6.7016,149.22,149.19,0.2442222]
[1727302764650,6.702,149.21,149.19,0.2442222]
[1727302765047,66.7499,149.26,149.19,0.2442222]
[1727302765048,6.7024,149.2,149.19,0.2442222]
[1727302769562,24.027864,149.23,149.19,0.2442222]
[1727302769768,6.702,149.21,149.19,0.2442222]
[1727302774850,0.12549,149.23,149.19,0.2442222]
[1727302775052,6.7013,149.23,149.19,0.2442222]
[1727302776880,30.604774,149.2,149.19,0.2442222]
[1727302777079,30.730264,149.2,149.19,0.2442222]
[1727302777787,71.070264,149.2,149.19,0.2442222]
[1727302778880,71.070264,149.2,149.19,2.22e-05]
[1727302783184,6.7024,149.2,149.19,2.22e-05]
[1727302784679,30.730264,149.2,149.19,2.22e-05]
[1727302788492,71.070264,149.2,149.19,2.22e-05]
[1727302792472,78.0680285,149.2,149.19,2.22e-05]
[1727302795377,71.070264,149.2,149.19,2.22e-05]
[1727302801507,6.7024,149.2,149.19,2.22e-05]
[1727302802781,6.7015,149.22,149.19,2.22e-05]
[1727302803188,16.7489,149.27,149.19,25.56725585]
[1727302803395,6.7006,149.24,149.19,25.56725585]
[1727302803883,50.0,149.28,149.19,18.86485585]
[1727302803884,90.34,149.28,149.19,18.86485585]
[1727302804079,6.7006,149.24,149.2,6.7023]
[1727302804881,6.7002,149.25,149.2,14.18208629]
[1727302805109,6.7002,149.25,149.2,12.8418]
[1727302805683,90.34,149.28,149.2,6.1395]
[1727302805882,6.7015,149.22,149.2,6.1395]
[1727302806498,6.7024,149.2,149.19,2.22e-05]
[1727302808705,6.82789,149.2,149.19,2.22e-05]
[1727302810710,90.34,149.26,149.19,2.22e-05]
[1727302810891,6.7016,149.22,149.19,2.22e-05]
[1727302811093,40.34,149.26,149.19,2.22e-05]
[1727302811300,6.7011,149.23,149.19,2.22e-05]
[1727302812404,66.7481,149.28,149.19,2.22e-05]
[1727302812405,6.7016,149.22,149.19,2.22e-05]
[1727302812804,6.7019,149.21,149.19,2.22e-05]
[1727302814198,6.7016,149.22,149.19,2.22e-05]
[1727302815088,90.34,149.28,149.19,2.22e-05]
[1727302815288,6.7007,149.24,149.2,25.56713365]
[1727302816814,6.702,149.21,149.19,2.22e-05]
[1727302816997,107.0896,149.26,149.19,2.22e-05]
[1727302817190,6.7024,149.2,149.19,2.22e-05]
[1727302818215,30.604774,149.2,149.19,2.22e-05]
[1727302818515,30.730264,149.2,149.19,2.22e-05]
[1727302818816,121.070264,149.2,149.19,2.22e-05]
[1727302820821,141.070264,149.2,149.19,2.22e-05]
[1727302820996,97.29518,149.16,149.15,0.2442222]
[1727302821188,121.072064,149.16,149.15,0.2442222]
[1727302821998,80.732064,149.16,149.15,0.2442222]
[1727302825428,100.732064,149.16,149.15,0.2442222]
[1727302825712,100.732064,149.16,149.15,2.22e-05]
[1727302827919,107.73145772,149.16,149.15,2.22e-05]
[1727302832204,6.7042,149.16,149.15,2.22e-05]
[1727302834327,30.732064,149.16,149.15,2.22e-05]
[1727302835002,6.7037,149.18,149.15,2.22e-05]
[1727302835823,6.7023,149.21,149.16,29.0701]
[1727302836328,50.0,149.22,149.16,22.3661]
[1727302836703,6.7024,149.2,149.16,22.3661]
[1727302836900,47.0424,149.2,149.16,22.3661]
[1727302837104,6.7024,149.2,149.16,22.3661]
[1727302837524,6.702,149.21,149.16,29.0702]
[1727302837825,6.702,149.21,149.16,29.0699]
[1727302838024,50.0,149.26,149.16,41.23093365]
[1727302838326,50.0,149.26,149.18,6.7031]
[1727302838619,6.7015,149.22,149.17,6.7036]
[1727302839704,50.0,149.26,149.16,57.99073365]
[1727302839918,6.7011,149.23,149.18,6.7031]
[1727302840335,50.0,149.26,149.18,6.7031]
[1727302840633,6.7015,149.22,149.17,6.7037]
[1727302842016,6.7021,149.21,149.16,45.8299]
[1727302842316,6.7011,149.23,149.18,6.7028]
[1727302842518,24.027864,149.25,149.16,45.8296]
[1727302842519,6.702,149.21,149.16,45.8296]
[1727302842719,6.7027,149.2,149.16,39.1259]
[1727302842919,24.027864,149.23,149.16,22.3661]
[1727302843335,6.7037,149.17,149.16,22.3661]
[1727302843632,6.7037,149.17,149.16,15.9073]
[1727302849553,6.7033,149.18,149.16,15.9073]
[1727302852842,6.7042,149.16,149.15,2.22e-05]
[1727302853340,6.7038,149.17,149.15,2.22e-05]
[1727302856648,50.0,149.19,149.15,2.22e-05]
[1727302856840,6.7042,149.16,149.15,2.22e-05]
[1727302858431,6.82969,149.16,149.15,2.22e-05]
[1727302859447,6.7042,149.16,149.15,2.22e-05]
[1727302859647,40.658874,149.2,149.15,2.22e-05]
[1727302859648,6.7038,149.17,149.15,2.22e-05]
[1727302860554,6.7028,149.19,149.15,2.22e-05]
[1727302860842,6.7024,149.2,149.15,43.67131013]
[1727302861049,6.7024,149.2,149.15,42.33055585]
[1727302861542,6.7029,149.19,149.15,23.4657222]
[1727302861773,6.7025,149.2,149.15,23.4657222]
[1727302862347,24.027864,149.21,149.15,2.22e-05]
[1727302862642,131.123264,149.21,149.15,2.22e-05]
[1727302862823,114.367864,149.21,149.15,2.22e-05]
[1727302863020,30.606574,149.16,149.15,2.22e-05]
[1727302863553,30.732064,149.16,149.15,2.22e-05]
[1727302863854,70.072064,149.16,149.15,2.22e-05]
[1727302867354,29.732064,149.16,149.15,2.22e-05]
[1727302868250,5.7042,149.16,149.15,2.22e-05]
[1727302868430,57.0979,149.19,149.15,2.22e-05]
[1727302868431,6.7038,149.17,149.15,2.22e-05]
[1727302868833,6.7042,149.16,149.15,2.22e-05]
[1727302869854,30.732064,149.16,149.15,2.22e-05]
[1727302871541,71.072064,149.16,149.15,2.22e-05]
[1727302873068,71.072064,149.16,149.1,0.313872]
[1727302873069,30.734264,149.11,149.1,0.313872]
[1727302873358,0.12549,149.09,149.01,17.090872]
[1727302873553,6.7082,149.07,149.01,17.090872]
[1727302874133,6.7082,149.07,149.01,23.801572]
[1727302874345,6.7082,149.07,149.01,17.090872]
[1727302874547,6.7082,149.07,149.02,6.7103]
[1727302874750,6.7082,149.07,149.02,8.05225532]
[1727302875336,6.707,149.1,149.05,6.709]
[1727302875662,6.707,149.1,149.05,8.05065536]
[1727302876040,6.7074,149.09,149.05,6.709]
[1727302876464,6.7074,149.09,149.05,8.0506608]
[1727302877158,6.7092,149.05,149.01,7.024772]
[1727302877346,6.7088,149.06,149.01,7.024772]
[1727302878467,6.7088,149.06,149.02,15.3305]
[1727302879545,6.7088,149.06,149.02,22.0409]
[1727302879744,23.776884,149.1,149.02,15.3305]
[1727302879941,0.25098,149.09,149.02,50.97103365]
[1727302880144,6.7087,149.06,149.02,38.8163]
[1727302880444,6.7087,149.06,149.02,32.1062]
[1727302880751,6.7096,149.04,149.02,15.3305]
[1727302881262,6.71,149.03,149.02,15.3305]
[1727302882643,6.83599,149.02,149.01,0.313872]
[1727302883169,6.7105,149.02,149.01,0.313872]
[1727302884159,50.0,149.05,149.01,0.313872]
[1727302884372,6.83599,149.02,149.01,0.313872]
[1727302884955,30.738364,149.02,149.01,0.313872]
[1727302885567,30.612874,149.02,149.01,0.313872]
[1727302890360,6.7096,149.04,149.01,0.313872]
[1727302890859,6.7101,149.03,149.01,0.313872]
[1727302891065,6.7092,149.05,149.01,0.313872]
[1727302891265,6.7087,149.06,149.01,7.024672]
[1727302892273,6.7093,149.05,149.01,7.024672]
[1727302892772,90.34,149.11,149.02,1.34212444]
[1727302892954,90.34,149.11,149.03,7.4138459]
[1727302893141,6.7083,149.07,149.03,12.7819]
[1727302894359,6.7078,149.08,149.04,6.7095]
[1727302894560,66.7645,149.13,149.05,1.34185087]
[1727302894871,6.707,149.1,149.07,16.3263]
[1727302897461,24.027864,149.12,149.07,16.3263]
[1727302897664,24.027864,149.12,149.08,6.7075]
[1727302897864,50.0,149.15,149.07,23.0345]
[1727302898049,6.7065,149.11,149.07,16.3263]
[1727302899755,50.0,149.15,149.07,16.3263]
[1727302900074,6.7073,149.09,149.07,16.3263]
[1727302901065,0.12549,149.13,149.07,16.3263]
[1727302901272,6.7065,149.11,149.07,16.3263]
[1727302901571,6.7065,149.11,149.07,23.0344]
[1727302903954,6.7071,149.1,149.07,16.3263]
[1727302904365,6.7073,149.09,149.07,16.3263]
[1727302907261,23.902374,149.12,149.07,16.3263]
[1727302907462,6.707,149.1,149.07,16.3263]
[1727302907769,23.902374,149.12,149.07,16.3263]
[1727302908083,6.7067,149.11,149.07,17.66781765]
[1727302908375,6.7067,149.11,149.07,16.3263]
[1727302910875,6.7067,149.11,149.07,23.0344]
[1727302916062,0.12549,149.13,149.07,16.3263]
[1727302916272,6.7056,149.13,149.09,6.7072]
[1727302916474,6.7056,149.13,149.08,24.81811771]
[1727302917079,40.34,149.16,149.08,24.81811771]
[1727302917258,6.706,149.12,149.08,24.81811771]
[1727302917577,6.706,149.12,149.08,23.4767]
[1727302918276,6.7065,149.11,149.08,16.7691]
[1727302918453,6.7065,149.11,149.07,23.0344]
[1727302919473,64.367864,149.15,149.07,23.0344]
[1727302919767,6.7061,149.12,149.07,23.0344]
[1727302920358,64.367864,149.15,149.11,6.7064]
[1727302920359,6.7049,149.15,149.11,6.7064]
[1727302920580,0.2442222,149.17,149.11,6.7064]
[1727302920751,6.7043,149.16,149.11,6.7064]
[1727302920956,6.7043,149.16,149.1,20.20601077]
[1727302921158,6.9480222,149.17,149.11,32.2946]
[1727302921358,6.7043,149.16,149.11,39.0009]
[1727302921820,0.2442222,149.17,149.11,32.2946]
[1727302922080,6.7051,149.14,149.11,15.5289]
[1727302923254,0.25098,149.14,149.08,23.4762]
[1727302923480,0.12549,149.14,149.09,6.7073]
[1727302923660,23.776884,149.15,149.08,16.7688]